Cogmind - Beta 17 @@@ ROGUE MODE // 2026.07.11 @ 13:00:22 Player: beans Result: Destroyed by as-89778 with Assembled Heavy Rifle Performance ------------- Evolutions (1) 500 Regions Visited (4) 800 Robots Destroyed (16) 80 Value Destroyed (361) 361 Prototype IDs (1) 20 Alien Tech Used (0) 0 Bonus (0) 0 TOTAL SCORE: 1761 Bonus ------- None Cogmind --------- Core Integrity 0/400 Matter 300/300 Energy 70/100 System Corruption 0% Temperature Cool (0) Movement Core (50) Location -9/Mines Parts ------- > --- POWER (1) -------- (None) > --- PROPULSION (2) --- (None) > --- UTILITY (4) ------ (None) > --- WEAPON (2) ------- (None) > --- INVENTORY (5) ---- High-capacity Matter Pod (200) Experimental Sensor Array Authchip [Device] Makeshift Axe Peak State ------------ > --- POWER ------------ (None) > --- PROPULSION ------- Improved Treads > --- UTILITY ---------- Heat Sink Improved Heat Sink High-capacity Matter Pod Experimental Sensor Array > --- WEAPON ----------- Light Cannon Light Cannon > --- INVENTORY -------- Authchip [Device] Heavy Assault Rifle Light Cannon Light Cannon Makeshift Axe [Rating: 19] Favorites ----------- Power Light Ion Engine Engine Light Ion Engine Propulsion Aluminum Leg Treads Improved Treads Leg Aluminum Leg Utility Heat Sink Device Heat Sink Storage High-capacity Matter Pod Weapon Light Cannon Energy Gun EM Pulse Gun Ballistic Gun Heavy Assault Rifle Ballistic Cannon Light Cannon Build | -11 -10 -10 -9 -9 ------- Run | Yrd Mat Min Mat Min Slots Evolved 2 | . . . 2 . Power . | . . . . . Propulsion . | . . . . . Utility 2 | . . . 2 . Weapon . | . . . . . Parts Attached 14 | 5 1 1 2 5 Power 1 | 1 . . . . Engine 1 | 1 . . . . Core . | . . . . . Reactor . | . . . . . Propulsion 3 | 2 . . . 1 Treads 1 | . . . . 1 Leg 2 | 2 . . . . Wheel . | . . . . . Hover . | . . . . . Flight . | . . . . . Utility 4 | . 1 1 . 2 Device 3 | . 1 1 . 1 Storage 1 | . . . . 1 Processor . | . . . . . Hackware . | . . . . . Protection . | . . . . . Artifact . | . . . . . Weapon 6 | 2 . . 2 2 Energy Gun 2 | 2 . . . . Energy Cannon . | . . . . . Ballistic Gun 1 | . . . . 1 Ballistic Cannon 3 | . . . 2 1 Launcher . | . . . . . Special Weapon . | . . . . . Impact Weapon . | . . . . . Slashing Weapon . | . . . . . Piercing Weapon . | . . . . . Special Melee Weapon . | . . . . . Unidentified Prototypes 1 | . . . . 1 Corrupted Parts 1 | . . 1 . . System Corruption 2 | . . 2 . . Parts Lost 10 | . . . 3 7 Power 1 | . . . 1 . Propulsion 2 | . . . 1 1 Utility 2 | . . . . 2 Weapon 5 | . . . 1 4 Highest Loss Streak 7 | . . . 3 7 To Critical Strikes . | . . . . . Average Backups 4 | . 3 4 4 4 Power . | . . . . . Propulsion . | . . . . . Utility . | . . . . . Weapon 3 | . 3 4 4 3 Tool/Special . | . . . . . Unused Backups 3 | . . . . 3 Power . | . . . . . Propulsion . | . . . . . Utility 1 | . . . . 1 Weapon 2 | . . . . 2 Tool/Special . | . . . . . Average Slot Usage (%) 72 | . 73 88 58 64 Engine 6 | . 14 14 1 . Treads 3 | . . . . 9 Leg 14 | . 28 28 12 1 Device 19 | . 2 17 22 24 Storage 3 | . . . . 8 Energy Gun 12 | . 28 28 3 . Ballistic Cannon 11 | . . . 18 21 Peak Build Rating 19 | 5 6 9 9 19 Average Rating 8 | 3 5 6 7 12 On Entrance 5 | . 5 6 9 7 Avg Prop Armor Cover (%) 7 | . . . . 7 Naked Turns 8 | . . . . 8 Heaviest Build 13 | 7 8 9 9 13 Greatest Support 23 | 20 20 20 20 23 Greatest Overweight (x) . | . . . . . Average Overweight (x) . | . . . . . Largest Inventory Capacity 5 | 5 5 5 5 5 Average Capacity 5 | 5 5 5 5 5 Most Carried 5 | 2 5 5 5 5 Average Carried 4 | . 3 4 4 4 Final Capacity 5 | 5 5 5 5 5 Final Carried 5 | . 4 5 5 4 Class Distribution -------------------- 100% | Mutant Dominant Class ---------------- Mutant | -10/Materials Mutant | -10/Mines Mutant | -9/Materials Mutant | -9/Mines Resources | -11 -10 -10 -9 -9 ----------- Run | Yrd Mat Min Mat Min Matter Collected 512 | 159 . 92 102 159 Remotely . | . . . . . Salvage Created 354 | . . 192 122 40 Parts 23 | . . 6 11 6 Haulers Intercepted . | . . . . . Recyclers Shooed . | . . . . . Parts Field Recycled . | . . . . . Retrieved Matter . | . . . . . Parts Self-Destructed . | . . . . . Prevented . | . . . . . Parts Restored . | . . . . . Kills | -11 -10 -10 -9 -9 ------- Run | Yrd Mat Min Mat Min Combat Hostiles Destroyed 16 | . . 4 8 4 Guns 2 | . . 2 . . Cannons 12 | . . . 8 4 AOE 1 | . . 1 . . Classes Destroyed 3 | . . 1 2 . Swarmer 10 | . . . 7 3 Grunt 5 | . . 4 . 1 Sentry 1 | . . . 1 . Best Kill Streak 4 | . . 2 4 4 Combat Bots Only 4 | . . 2 4 4 Max Kills in Single Turn 1 | . . 1 1 1 Gunslinging . | . . . . . Exploded 1 | . . 1 . . Melee . | . . . . . Uniques/NPCs Destroyed . | . . . . . Combat | -11 -10 -10 -9 -9 -------- Run | Yrd Mat Min Mat Min Hostile Shots Fired 121 | . . 22 37 62 Missed 33 | . . 5 14 14 Hits 88 | . . 17 23 48 Melee 6 | . . . . 6 Projectile 82 | . . 17 23 42 AOE 14 | . . . . 14 Critical Strikes 3 | . . . 1 2 Damage Taken 1377 | . . 223 193 961 Core 455 | . . 48 39 368 Absorbed by Shields . | . . . . . Core Remaining (%) 90 | 100 . 80 . . Volleys Fired 45 | . . 14 13 18 Largest 2 | . . 2 2 2 Hottest 80 | . . 80 80 60 Shots Fired 88 | . . 28 26 34 Gun 34 | . . 28 4 2 Cannon 54 | . . . 22 32 Launcher . | . . . . . Special . | . . . . . Kinetic 56 | . . . 22 34 Thermal . | . . . . . Explosive . | . . . . . Electromagnetic 32 | . . 28 4 . Robot Hit Streak 11 | . . 10 11 9 Robot Miss Streak 4 | . . 2 4 2 Penetration Max . | . . . . . Secondary Targets . | . . . . . Shots Hit Robots 54 | . . 21 11 22 Core Hits 22 | . . 7 8 7 Critical Kills . | . . . . . Critical Parts Destroyed . | . . . . . Critical Strikes . | . . . . . Melee Attacks . | . . . . . Impact . | . . . . . Slashing . | . . . . . Piercing . | . . . . . Sneak Attacks . | . . . . . Combat Hostiles . | . . . . . Follow-up Attacks . | . . . . . Damage Inflicted 851 | . . 293 192 366 Guns 273 | . . 261 . 12 Cannons 546 | . . . 192 354 Explosions 32 | . . 32 . . Melee . | . . . . . Ramming . | . . . . . Kinetic 558 | . . . 192 366 Thermal 32 | . . 32 . . Explosive . | . . . . . Electromagnetic 261 | . . 261 . . Impact . | . . . . . Slashing . | . . . . . Piercing . | . . . . . Highest Corruption 2 | . . 2 . . Average Corruption 2 | . . 2 . . Corruption Purged . | . . . . . Corruption Blocked . | . . . . . Overload Shots . | . . . . . Overflow Damage 2 | . . . . 2 Projectiles 2 | . . . . 2 Explosions . | . . . . . Melee . | . . . . . Knockbacks 7 | . . . 1 6 Impact . | . . . . . Kinetic 6 | . . . 1 5 Secondary 1 | . . . . 1 Self-Inflicted Damage . | . . . . . Shots . | . . . . . Rammed . | . . . . . Targets Rammed . | . . . . . Kicked . | . . . . . Crushed . | . . . . . Highest Temperature 31 | . . 31 . . Average Temperature 14 | . . 14 . . Received Heat Transfer 182 | . . 123 . 59 Siege Activations . | . . . . . Martial Activations . | . . . . . Shielding Activations . | . . . . . Robots Disrupted . | . . . . . Combat Hostiles . | . . . . . Robots Corrupted 1 | . . 1 . . Combat Hostiles 1 | . . 1 . . Parts Fried 3 | . . 3 . . Impact Corruptions . | . . . . . Robots Melted . | . . . . . Combat Hostiles . | . . . . . Parts Melted . | . . . . . Heat Transferred 50 | . . 50 . . Parts Sabotaged . | . . . . . Parts Stolen . | . . . . . Parts Stripped . | . . . . . Power Chain Reactions 1 | . . 1 . . Alert | -11 -10 -10 -9 -9 ------- Run | Yrd Mat Min Mat Min Maximum Alert Level . | . . . . . Low Security (%) 100 | 100 100 100 100 100 Level 1 . | . . . . . Level 2 . | . . . . . Level 3 . | . . . . . Level 4 . | . . . . . Level 5 . | . . . . . High Security . | . . . . . Max Security . | . . . . . Peak Influence 131 | . . 58 131 87 Initial 43 | . . . . 43 Average 17 | . . 14 71 12 Influence Increases 429 | . . 118 191 120 Destroy 0b10 Robot/C 320 | . . 80 160 80 Destroy Leader 60 | . . 20 30 10 Disable Machine 30 | . . 15 . 15 Destroy Structure 4 | . . 3 1 . Lose Combat Pursuer 15 | . . . . 15 Influence Decreases 411 | . . 116 82 213 Entered New Map 70 | . . . 2 68 Time Decay 271 | . . 116 80 75 Lost Part 70 | . . . . 70 Squads Dispatched 1 | . . . . 1 Investigation . | . . . . . Extermination . | . . . . . Reinforcement . | . . . . . Assault 1 | . . . . 1 Garrison . | . . . . . Intercept . | . . . . . Searches Triggered . | . . . . . Construction Impeded . | . . . . . Haulers Reinforced . | . . . . . Active Scanning Responses . | . . . . . Cargo Convoy Interrupts . | . . . . . Stealth | -11 -10 -10 -9 -9 --------- Run | Yrd Mat Min Mat Min Distress Signals 1 | . . . . 1 Communications Jammed . | . . . . . Distress Signals . | . . . . . Times Spotted 32 | . 1 4 8 19 Peak Tracking Total 8 | . 1 2 4 8 Tactical Retreats 1 | . . . . 1 Traps | -11 -10 -10 -9 -9 ------- Run | Yrd Mat Min Mat Min Traps Triggered . | . . . . . Indirectly . | . . . . . Trap Hack Attempts . | . . . . . Triggered . | . . . . . Disarmed . | . . . . . Reprogrammed . | . . . . . Reused . | . . . . . Traps Extracted . | . . . . . Installed . | . . . . . Triggered . | . . . . . Machines | -11 -10 -10 -9 -9 ---------- Run | Yrd Mat Min Mat Min Machines Disabled 2 | . . 1 . 1 Max in Single Turn 1 | . . 1 . 1 Machines Repaired . | . . . . . Machines Dismantled . | . . . . . Machines Sabotaged . | . . . . . Overloaded Fab Kills . | . . . . . Hacking | -11 -10 -10 -9 -9 --------- Run | Yrd Mat Min Mat Min Machines Accessed . | . . . . . Terminals . | . . . . . Fabricators . | . . . . . Repair Stations . | . . . . . Recycling Units . | . . . . . Scanalyzers . | . . . . . Garrison Access . | . . . . . Total Hacks . | . . . . . Successful . | . . . . . Failed . | . . . . . Catastrophic . | . . . . . Database Lockouts . | . . . . . Manual . | . . . . . Terminals . | . . . . . Fabricators . | . . . . . Repair Stations . | . . . . . Recycling Units . | . . . . . Scanalyzers . | . . . . . Garrison Access . | . . . . . Terminal Hacks . | . . . . . Fabricator Hacks . | . . . . . Repair Station Hacks . | . . . . . Recycling Unit Hacks . | . . . . . Scanalyzer . | . . . . . Garrison Access Hacks . | . . . . . Unauthorized Hacks . | . . . . . Terminals . | . . . . . Fabricators . | . . . . . Repair Stations . | . . . . . Recycling Units . | . . . . . Scanalyzers . | . . . . . Garrison Access . | . . . . . Data Cores Recovered . | . . . . . Used . | . . . . . Hacking Detections . | . . . . . Full Trace Events . | . . . . . Feedback Events . | . . . . . Feedback Blocked . | . . . . . Robot Schematics Acquired . | . . . . . Robots Built . | . . . . . Authchips . | . . . . . Time . | . . . . . Total Robot Build Rating . | . . . . . Part Schematics Acquired . | . . . . . Parts Built . | . . . . . Authchips . | . . . . . Time . | . . . . . Total Part Build Rating . | . . . . . Part Studies Acquired . | . . . . . Parts Repaired . | . . . . . Time . | . . . . . Parts Recycled . | . . . . . Recycled Matter . | . . . . . Retrieved Matter . | . . . . . Retrieved Components . | . . . . . Parts Scanalyzed . | . . . . . Part Schematics Acquired . | . . . . . Parts Damaged . | . . . . . Bothacking | -11 -10 -10 -9 -9 ------------ Run | Yrd Mat Min Mat Min Used RIF Installer . | . . . . . Robots Hacked . | . . . . . Non-combat . | . . . . . Combat . | . . . . . Robot Hacks Applied . | . . . . . Relay Couplers Released . | . . . . . Fabnet Peak Effective % . | . . . . . Robots Rewired . | . . . . . Allies Hacked . | . . . . . Hacks Repelled . | . . . . . Allies | -11 -10 -10 -9 -9 -------- Run | Yrd Mat Min Mat Min Total Allies 1 | . . . . 1 Largest Group 1 | . . . . 1 Highest-Rated Group 31 | . . . . 31 Highest-Rated Ally 31 | . . . . 31 Total Orders . | . . . . . Ally Attacks 4 | . . . . 4 Total Damage 62 | . . . . 62 Kills . | . . . . . Allies Corrupted . | . . . . . Allies Melted . | . . . . . Intel | -11 -10 -10 -9 -9 ------- Run | Yrd Mat Min Mat Min Active Infowar (turns) 171 | . . . . 171 Sensors 171 | . . . . 171 Robot Analysis Total . | . . . . . Derelict Logs Recovered 2 | . . 1 . 1 Drone Launches . | . . . . . Drone Recoveries . | . . . . . Exploration | -11 -10 -10 -9 -9 ------------- Run | Yrd Mat Min Mat Min Turns Passed 1376 | 71 150 434 164 557 Spaces Moved 929 | 59 121 323 89 337 Core 44 | 12 . . . 32 Treads 266 | . . . . 266 Legs 619 | 47 121 323 89 39 Wheels . | . . . . . Hover . | . . . . . Flight . | . . . . . Fastest Speed 50 | 50 120 120 120 50 Average Speed 128 | 105 120 120 120 144 Slowest Speed 160 | 120 120 120 120 160 Overloaded Moves . | . . . . . Propulsion Burnouts . | . . . . . Robots Hopped . | . . . . . Potential Cave-ins . | . . . . . Cave-ins Triggered . | . . . . . Exploration Rate (%) 37 | 4 32 63 15 74 Regions Visited 4 Branch Regions 2 Pre-discovered Areas . | . . . . . Known Exits Taken 1 | . . 1 . . Unknown Exits Taken 3 | 1 1 . 1 . Scrap Searched 2 | . . . . 2 Spaces Dug . | . . . . . Terrain Destroyed 3 | . . 3 . . Melee . | . . . . . Projectile . | . . . . . AOE 3 | . . 3 . . Terrain Rammed . | . . . . . Walls Destroyed . | . . . . . Machines Disabled . | . . . . . Actions | -11 -10 -10 -9 -9 --------- Run | Yrd Mat Min Mat Min Total 1024 | 66 126 341 119 372 Wait 24 | . . 3 15 6 Move 925 | 58 120 322 88 337 Hop . | . . . . . Pick Up 11 | 3 5 1 1 1 Fast Attach 6 | 2 . 1 . 3 Attach 7 | 3 1 . 1 2 Detach 2 | . . . . 2 Swap 1 | . . . 1 . Drop 3 | . . . . 3 Fire 45 | . . 14 13 18 Melee . | . . . . . Ram . | . . . . . Kick . | . . . . . Crush . | . . . . . Escape Stasis . | . . . . . Rewire . | . . . . . Trap . | . . . . . Miscellaneous . | . . . . . Route ------- -11/Scrapyard -10/Materials (discovered 2 exits: *Mat / [*Min]) -10/Mines -9/Materials -9/Mines (discovered 2 exits: [*Mat x2]) History --------- Turn | Location | Event 4 | -11/Scrapyard | Discovered new exit (range 15) 72 | -11/Scrapyard | Entered Materials 182 | -10/Materials | Discovered new exit (range 12) 216 | -10/Materials | Discovered new exit (range 5) 222 | -10/Materials | Entered Mines 313 | -10/Mines | Build established: Mutant 402 | -10/Mines | A weapon hastily lodged in a ceiling crevice suddenly fell to the ground 626 | -10/Mines | Identified exit to Materials 656 | -10/Mines | Entered Materials 656 | -9/Materials | Evolved 2 slots: Utility x2 702 | -9/Materials | Lost 3 parts (1p1n1w) 803 | -9/Materials | Discovered new exit (range 15) 820 | -9/Materials | Entered Mines 849 | -9/Mines | Discovered new exit (range 6) 880 | -9/Mines | Discovered new exit (range 14) 1182 | -9/Mines | Found a damaged Exp. Sensor Array with a note attached 1186 | -9/Mines | Found Prototype Device 1186 | -9/Mines | Identified Exp. Sensor Array 1219 | -9/Mines | Met a Derelict testing a Signal Generator 1283 | -9/Mines | Assembled infested the area 1288 | -9/Mines | Assisted by a Guerilla fighting off Assembled 1349 | -9/Mines | Core integrity fell below 50% 1374 | -9/Mines | Core integrity fell below 20% 1377 | -9/Mines | Destroyed by as-89778 with Assembled Heavy Rifle Last Messages --------------- Heat Sink destroyed. U-05 Engineer lays Concrete. D-53 Grenadier knocked back. U-05 Engineer lays Concrete. Lgt. Cannon destroyed. U-05 Engineer lays Concrete. U-05 Engineer destroyed. Dropped Lgt. Cannon. Lgt. Cannon destroyed. The unstable cave ceiling collapses. D-53 Grenadier destroyed. Imp. Heat Sink destroyed. Seismic Survey Station disabled. as-98211 destroyed. Seismic Survey Station disabled. as-14996 destroyed. Seismic Survey Station disabled. Hvy. Assault Rifle destroyed. The unstable cave ceiling collapses. Acquired 48 matter. Map ----- +----------------------------------------------------+ | ???????????????????????????????????????????? | | ???????????????????????????????????????????? | | ???????????????????????????????????????????? | | ???????????????????????????????????????????? | | ???????????????????????????????????########? | | ???????????????????????????????????# #? | | ???????????????????????????????????# ! #? | | ???????????????????????????????????# ! ! #? | | ???????????????????????????????????# ! ! #? | | ???????????????????????????????????# !!! ## | | ???????????????????????????????????# ## | | ???????????????????????????????????#### | | ??????????????????????????????????????# | | ??????????????????????????????????????## | | ???????????????????????????????????????### | | ?????????????????????????????????????????### | | ???????????????????????????????????????????? | | ???????????????????????????????????????????? | | ???????????????????????????????????????????? | | ?????????????????####??????????????????????? | | ?????????????????# ??????????????????????? | | ?????????????????# #???????????????????# | | ?????????????????# #??????????????????????? | | ?????????????????# #??????????????????????? | | ?????????????????# #??????????????????????? | | ?????????????????#a@#??????????????????????? | | ????????????????## ###???????????????????# | | ????????????????# aa ##?????????????????# | | ?????#####?????## #?????????????????# | | ????## ##????# #?????????????????# | | ????# ###?## ##???#####?#####???# | | ???## #?# # ###### ### ##??# | | ???# #### ## ### | | ???# # # ## #?# """ | | ?### % # ### """ # | | ## ] =* %= ## ## """ ## | | # d % # # "% #???# | | # % a#= = " #????# | | ## = " ## / % ## ###### | | # = #### ## #### | | ?# % """%#??# ## ##??## ####### | | # """ #??# ### ##????####?????# | | # % """ #??# #?######??????????????# | | ## #??# #?????????????????????# | | ?# """ #??# #?????????????????????# | | ?# " """ #??# #?????????????????????# | | ?# " " "" """ #?## ##????????????????????# | | ?# #?# #####????????????????# | | ?################?# ##???????????????# | | ??????????????????# #???????????????? | +----------------------------------------------------+ Best States ------------- Heat Dissipation 52 Energy Generation 10 Energy Capacity 125 Matter Stores 500 Matter Capacity 500 Sight Range 16 Robot Scan Range 20 Terrain Scan Density 10 Evasion (%) 55 Recoil Reduction 1 Authchip Count 1 Item Schematics ----------------- None Robot Schematics ------------------ None Fabricated ------------ Nothing Repaired ---------- Nothing Studied --------- None Alien Tech Used ----------------- None Achievements -------------- None Challenges ------------ None Game ------ Seed GhostMasterSaw Manual? 0 Play Time 00:09:02 Cumulative 370.5 hours Start 2026.07.11 @ 12:52:45 End 2026.07.11 @ 13:00:22 Sessions 1 Manual Loads 0 Difficulty Rogue Special Mode None Game No. 912 Rogue 910 Adventurer 2 Explorer 0 Win Type - Total 1 Types 1/0/0/0/0/0/0/0/0/0 Lore% 54 Gallery% 68 Achievement% 53 Wizard Run 0 Options --------- Layout 2 ASCII 0 Keyboard 0 Movement Mouse Keybinds 0 Fullscreen 1 Font 24/Smallcaps Map View 50x44 Zoom Use 0% Tactical HUD 0 Map Filters NONE Filters NONE Steam 1 RUN: efc9efdf-4c16-4039-9863-90d06224f639